Cogmind - Beta 11.1 @@@ ROGUE MODE // 2022.05.10 @ 11:27:14 Player: Tilda Result: Self-destructed Performance ------------- Evolutions (1) 500 Regions Visited (2) 400 Robots Destroyed (28) 140 Value Destroyed (515) 515 Prototype IDs (0) 0 Alien Tech Used (0) 0 Bonus (23) 23 TOTAL SCORE: 1578 Bonus ------- High Alert Combat Kills 23 Cogmind --------- Core Integrity 144/400 Matter 263/300 Energy 160/160 System Corruption 0% Temperature Cool (0) Movement Flying (112) Ox1 Location -9/Materials Parts ------- > --- POWER (1) -------- Light Nuclear Core > --- PROPULSION (2) --- VTOL Module VTOL Module > --- UTILITY (3) ------ Small Storage Unit Visual Processing Unit Tractor Beam > --- WEAPON (3) ------- (None) > --- INVENTORY (8) ---- Flight Unit Heat Sink Peak State ------------ > --- POWER ------------ Light Nuclear Core > --- PROPULSION ------- VTOL Module VTOL Module > --- UTILITY ---------- Small Storage Unit Visual Processing Unit Tractor Beam > --- WEAPON ----------- Plasma Cutter > --- INVENTORY -------- Flight Unit Heat Sink [Rating: 13] Favorites ----------- Power Ion Engine Engine Ion Engine Power Core Light Nuclear Core Propulsion Improved Treads Treads Improved Treads Leg Aluminum Leg Flight Unit VTOL Module Utility Small Storage Unit Device Heat Sink Storage Small Storage Unit Processor Visual Processing Unit Weapon Medium Laser Energy Gun Medium Laser Ballistic Gun Light Assault Rifle Launcher Grenade Launcher Special Weapon Plasma Cutter Build | -11 -10 -9 ------- Run | Scr Mat Mat Slots Evolved 2 | . . 2 Power . | . . . Propulsion . | . . . Utility 1 | . . 1 Weapon 1 | . . 1 Parts Attached 27 | 5 9 13 Power 3 | . 1 2 Engine 2 | . 1 1 Core 1 | . . 1 Reactor . | . . . Propulsion 7 | 2 2 3 Treads 3 | . 2 1 Leg 2 | 2 . . Wheel . | . . . Hover . | . . . Flight 2 | . . 2 Utility 6 | 1 3 2 Device 3 | . 2 1 Storage 2 | 1 . 1 Processor 1 | . 1 . Hackware . | . . . Protection . | . . . Artifact . | . . . Weapon 11 | 2 3 6 Energy Gun 5 | 1 2 2 Energy Cannon . | . . . Ballistic Gun 2 | 1 . 1 Ballistic Cannon . | . . . Launcher 3 | . 1 2 Special Weapon 1 | . . 1 Impact Weapon . | . . . Slashing Weapon . | . . . Piercing Weapon . | . . . Special Melee Weapon . | . . . Unidentified Prototypes . | . . . Parts Lost 9 | . . 9 Power 1 | . . 1 Propulsion 2 | . . 2 Utility 1 | . . 1 Weapon 5 | . . 5 Highest Loss Streak 7 | . . 7 To Critical Strikes . | . . . Average Slot Usage (%) 81 | . 79 84 Engine 5 | . 2 9 Treads 20 | . 22 18 Leg 3 | . 5 . Device 7 | . 5 8 Storage 9 | . 10 7 Processor 6 | . 3 11 Energy Gun 14 | . 14 14 Ballistic Gun 5 | . 2 8 Launcher 7 | . 11 3 Naked Turns . | . . . Heaviest Build 16 | 8 11 16 Greatest Support 46 | 20 46 46 Greatest Overweight (x) 2 | 1 . 2 Average Overweight (x) . | . . . Largest Inventory Capacity 8 | 8 8 8 Average Capacity 7 | 7 7 7 Most Carried 6 | 3 6 3 Average Carried 2 | . 3 1 Final Capacity 8 | 8 5 8 Final Carried 2 | . 2 2 Class Distribution -------------------- 71% | Mutant 28% | Skirmisher Dominant Class ---------------- Mutant | -10/Materials Skirmisher | -9/Materials Resources | -11 -10 -9 ----------- Run | Scr Mat Mat Matter Collected 632 | 209 112 311 Remotely 239 | . . 239 Salvage Created 595 | . 161 434 Parts 52 | . 22 30 Haulers Intercepted . | . . . Recyclers Shooed 3 | . . 3 Parts Field Recycled . | . . . Retrieved Matter . | . . . Parts Self-Destructed . | . . . Prevented . | . . . Kills | -11 -10 -9 ------- Run | Scr Mat Mat Combat Hostiles Destroyed 19 | . 8 11 Guns 11 | . 1 10 Cannons 1 | . . 1 AOE 7 | . 7 . Classes Destroyed 7 | . 4 3 Worker 1 | . . 1 Builder 1 | . . 1 Recycler 3 | . 1 2 Watcher 4 | . 3 1 Swarmer 12 | . 6 6 Grunt 4 | . 2 2 Sentry 3 | . . 3 Best Kill Streak 9 | . 6 9 Combat Bots Only 5 | . 5 4 Max Kills in Single Turn 3 | . 3 2 Gunslinging 1 | . . 1 Exploded 3 | . 3 . Melee . | . . . Uniques/NPCs Destroyed . | . . . Combat | -11 -10 -9 -------- Run | Scr Mat Mat Damage Taken 1294 | . 146 1148 Core 278 | . 22 256 Absorbed by Shields . | . . . Core Remaining (%) 95 | 100 91 . Volleys Fired 49 | . 10 39 Largest 3 | . 2 3 Hottest 110 | . 80 110 Shots Fired 101 | . 20 81 Gun 76 | . 11 65 Cannon . | . . . Launcher 21 | . 9 12 Special 4 | . . 4 Kinetic 36 | . 1 35 Thermal 24 | . 2 22 Explosive 21 | . 9 12 Electromagnetic 20 | . 8 12 Robot Hit Streak 7 | . 2 7 Robot Miss Streak 6 | . 6 3 Penetration Max . | . . . Secondary Targets 5 | . . 5 Max Gunslinging Chain 2 | . . 2 Shots Hit Robots 45 | . 8 37 Core Hits 51 | . 19 32 Critical Kills . | . . . Critical Parts Destroyed . | . . . Critical Strikes . | . . . Melee Attacks . | . . . Impact . | . . . Slashing . | . . . Piercing . | . . . Sneak Attacks . | . . . Combat Hostiles . | . . . Follow-up Attacks . | . . . Damage Inflicted 1724 | . 785 939 Guns 448 | . 61 387 Cannons . | . . . Explosions 1249 | . 718 531 Melee . | . . . Ramming 6 | . 6 . Kinetic 181 | . . 181 Thermal 228 | . 70 158 Explosive 1167 | . 661 506 Electromagnetic 142 | . 48 94 Impact . | . . . Slashing . | . . . Piercing . | . . . Highest Corruption . | . . . Average Corruption . | . . . Corruption Purged . | . . . Corruption Blocked . | . . . Overload Shots . | . . . Overflow Damage 27 | . 17 10 Projectiles . | . . . Explosions 27 | . 17 10 Melee . | . . . Knockbacks . | . . . Impact . | . . . Kinetic . | . . . Secondary . | . . . Self-Inflicted Damage 153 | . 35 118 Shots 4 | . 1 3 Rammed 1 | . 1 . Targets Rammed 2 | . 2 . Kicked . | . . . Crushed 1 | . 1 . Highest Temperature 194 | . 27 194 Average Temperature 69 | . 14 78 Received Heat Transfer 435 | . 45 390 Siege Activations . | . . . Robots Corrupted . | . . . Combat Hostiles . | . . . Parts Fried . | . . . Impact Corruptions . | . . . Robots Melted . | . . . Combat Hostiles . | . . . Parts Melted . | . . . Heat Transferred 494 | . 37 457 Parts Sabotaged . | . . . Parts Stolen . | . . . Parts Stripped . | . . . Power Chain Reactions 2 | . 1 1 Missiles Intercepted . | . . . Alert | -11 -10 -9 ------- Run | Scr Mat Mat Peak Influence 529 | . 396 529 Initial 82 | . . 82 Average 222 | . 195 284 Maximum Alert Level 2 | . 1 2 Low Security (%) 43 | 100 56 21 Level 1 46 | . 43 56 Level 2 9 | . . 21 Level 3 . | . . . Level 4 . | . . . Level 5 . | . . . High Security . | . . . Max Security . | . . . Squads Dispatched 2 | . 1 1 Investigation . | . . . Extermination . | . . . Reinforcement 2 | . 1 1 Assault . | . . . Garrison . | . . . Intercept . | . . . Searches Triggered . | . . . Construction Impeded 1 | . . 1 Haulers Reinforced . | . . . Active Scanning Responses . | . . . Cargo Convoy Interrupts . | . . . Stealth | -11 -10 -9 --------- Run | Scr Mat Mat Distress Signals 2 | . 1 1 Communications Jammed . | . . . Distress Signals . | . . . Times Spotted 29 | . 13 16 Peak Tracking Total 6 | . 6 4 Tactical Retreats . | . . . Traps | -11 -10 -9 ------- Run | Scr Mat Mat Traps Triggered . | . . . Indirectly . | . . . Trap Hack Attempts . | . . . Triggered . | . . . Disarmed . | . . . Reprogrammed . | . . . Reused . | . . . Traps Extracted . | . . . Installed . | . . . Triggered . | . . . Machines | -11 -10 -9 ---------- Run | Scr Mat Mat Machines Disabled 1 | . . 1 Max in Single Turn 1 | . . 1 Machines Sabotaged . | . . . Garrisons Compromised . | . . . Overloaded Fab Kills . | . . . Hacking | -11 -10 -9 --------- Run | Scr Mat Mat Machines Accessed 2 | . . 2 Terminals 1 | . . 1 Fabricators . | . . . Repair Stations . | . . . Recycling Units . | . . . Scanalyzers 1 | . . 1 Garrison Access . | . . . Total Hacks 6 | . . 6 Successful 6 | . . 6 Failed . | . . . Catastrophic . | . . . Database Lockouts . | . . . Manual . | . . . Terminals 2 | . . 2 Fabricators . | . . . Repair Stations . | . . . Recycling Units . | . . . Scanalyzers 4 | . . 4 Garrison Access . | . . . Terminal Hacks 2 | . . 2 Maintenance Status 1 | . . 1 Zone Layout 1 | . . 1 Fabricator Hacks . | . . . Repair Station Hacks . | . . . Recycling Unit Hacks . | . . . Scanalyzer 4 | . . 4 Insert Component 2 | . . 2 Analyze 2 | . . 2 Garrison Access Hacks . | . . . Unauthorized Hacks . | . . . Terminals . | . . . Fabricators . | . . . Repair Stations . | . . . Recycling Units . | . . . Scanalyzers . | . . . Garrison Access . | . . . Data Cores Recovered . | . . . Used . | . . . Hacking Detections 1 | . . 1 Full Trace Events . | . . . Feedback Events . | . . . Feedback Blocked . | . . . Robot Schematics Acquired . | . . . Robots Built . | . . . Authchips . | . . . Time . | . . . Total Robot Build Rating . | . . . Part Schematics Acquired 2 | . . 2 Parts Built . | . . . Authchips . | . . . Time . | . . . Total Part Build Rating . | . . . Parts Repaired . | . . . Time . | . . . Parts Recycled . | . . . Recycled Matter . | . . . Retrieved Matter . | . . . Retrieved Components . | . . . Parts Scanalyzed 2 | . . 2 Part Schematics Acquired 2 | . . 2 Parts Damaged . | . . . Bothacking | -11 -10 -9 ------------ Run | Scr Mat Mat Used RIF Installer . | . . . Robots Hacked . | . . . Non-combat . | . . . Combat . | . . . Robot Hacks Applied . | . . . Relay Couplers Released . | . . . Fabnet Peak Effective % . | . . . Robots Rewired . | . . . Allies Hacked . | . . . Hacks Repelled . | . . . Allies | -11 -10 -9 -------- Run | Scr Mat Mat Total Allies . | . . . Largest Group . | . . . Highest-Rated Group . | . . . Highest-Rated Ally . | . . . Total Orders . | . . . Ally Attacks . | . . . Total Damage . | . . . Kills . | . . . Allies Corrupted . | . . . Allies Melted . | . . . Intel | -11 -10 -9 ------- Run | Scr Mat Mat Robot Analysis Total . | . . . Derelict Logs Recovered . | . . . Drone Launches . | . . . Drone Recoveries . | . . . Exploration | -11 -10 -9 ------------- Run | Scr Mat Mat Turns Passed 958 | 53 496 409 Spaces Moved 517 | 49 294 174 Core 37 | 28 . 9 Treads 368 | . 221 147 Legs 94 | 21 73 . Wheels . | . . . Hover . | . . . Flight 18 | . . 18 Fastest Speed 32 | 50 120 32 Average Speed 143 | 87 150 147 Slowest Speed 160 | 120 160 160 Overloaded Moves . | . . . Propulsion Burnouts . | . . . Robots Hopped . | . . . Cave-ins Triggered . | . . . Exploration Rate (%) 22 | 5 45 16 Regions Visited 2 Branch Regions . Pre-discovered Areas . | . . . Known Exits Taken . | . . . Unknown Exits Taken 2 | 1 1 . Scrap Searched . | . . . Spaces Dug . | . . . Terrain Destroyed 116 | . 58 58 Melee . | . . . Projectile . | . . . AOE 116 | . 58 58 Terrain Rammed . | . . . Walls Destroyed . | . . . Machines Disabled . | . . . Actions | -11 -10 -9 --------- Run | Scr Mat Mat Total 652 | 59 333 260 Wait 22 | 1 . 21 Move 515 | 48 293 174 Hop . | . . . Pick Up 23 | 5 8 10 Fast Attach . | . . . Attach 25 | 5 9 11 Detach 8 | . 7 1 Swap 2 | . . 2 Drop 6 | . 4 2 Fire 49 | . 10 39 Melee . | . . . Ram . | . . . Kick . | . . . Crush 2 | . 2 . Escape Stasis . | . . . Rewire . | . . . Trap . | . . . Miscellaneous . | . . . Route ------- -11/Scrapyard -10/Materials -9/Materials (discovered 2 exits: [*Min x2]) History --------- Turn | Location | Event 19 | -11/Scrapyard | Discovered new exit (range 16) 54 | -11/Scrapyard | Entered Materials 220 | -10/Materials | Discovered new exit (range 15) 308 | -10/Materials | Build established: Mutant 550 | -10/Materials | Entered another Materials area 550 | -9/Materials | Evolved 2 slots: Utility x1, Weapon x1 772 | -9/Materials | Discovered new exit (range 13) 842 | -9/Materials | Discovered new exit (range 17) 911 | -9/Materials | Core integrity fell below 50% 943 | -9/Materials | Lost 7 parts (1p2n4w) 959 | -9/Materials | Self-destructed Last Messages --------------- 00912_ U-05 Engineer lays Concrete. 00918_ Electrolysis Chamber disabled. 00920_ Acquired Plasma Cutter. 00923_ Acquired VTOL Module. 00929_ Acquired Heat Sink. 00930_ Acquired 60 matter. 00933_ Acquired 15 matter. 00933_ Acquired 16 matter. 00933_ Acquired Flight Unit. 00937_ Acquired Lgt. Ion Engine. 00943_ G-47 Trooper destroyed. 00944_ Acquired 47 matter. 00947_ K-01 Serf collects debris. 00948_ Acquired Lgt. Nuclear Core. 00949_ Dropped Lgt. Ion Engine. 00951_ K-01 Serf collects debris. 00956_ Plasma Cutter destroyed. 00957_ U-05 Engineer lays Concrete. 00958_ The unstable cave ceiling collapses. 00958_ U-05 Engineer lays Concrete. Map ----- +----------------------------------------------------+ | ????????????????????????????????????# """"""" + | | ????????????????????????????????????# """"""" # | | ????????????????????????????????????# """"""" # | | ?????????????????????????? ?????????# """"""" # | | ?????????????????????????? ??????#### # | | ?????????????????????????? ?????? ########### | | ?????????????????????????# ??# ?"" #?????????# | | ????????????????????????? #?# """ #?????????# | | ?????????????????????????# #?# """ ########### | | ?????????????????????????# #?# # # | | ?????????????????????????# #?# """ # """ """ # | | ?????????????????????+#### ### """ # """ """ | | ?????????????????????? ## """ # """ """ # | | ??????????????????????? ## # | | ???????????????????????? ## ==| # | | ????????????????????????#% ## =|| # | | ???????????????####?????# ## =| # # | | ???????????????? ! ?????# ## ##### ##### | | ?????????????#?? ?????# #####+############ | | ?????????????# ?? ?????# | | ?????????????# #? ?????# | | ???????????### ###+###??# | | ???????????# #??## ##### #######+### | | ???????????# % #???# #???# #?# # # | | ???????????# #####g##### #?# """ # # # | | ????????????# Y@ # #?# """ # ### | | ????????????# u # "" k* ## #?# """ # #?? | | ???# ## "Y * "" ## #?# # #?? | | ?? =""!! " " ## #?######### #?? | | ?? < % ! ! * # ????????? ??? | | ?? ==! # "S == # ????????? ??? | | ???#" "# # [ """ == # < ???????? ??? | | ??????!????# # ##### "" # ???????? ??? | | ???????????# # ????# # [ ##??????? ??? | | ???????????# ?????########### ##???????? ??? | | ???????????### ????????????????# #????????? ??? | | ?????????????#?????????????????? ??????????? ??? | | ???????????????????????????????? ??????????????? | | ?????????????????????????????????????????????????? | | ?????????????????????????????????????????????????? | | ?????????????????????????????????????????????????? | | ?????????????????????????????????????????????????? | | ?????????????????????????????????????????????????? | | ?????????????????????????????????????????????????? | | ?????????????????????????????????????????????????? | | ?????????????????????????????????????????????????? | | ?????????????????????????????????????????????????? | | ?????????????????????????????????????????????????? | | ?????????????????????????????????????????????????? | | ?????????????????????????????????????????????????? | +----------------------------------------------------+ Best States ------------- Heat Dissipation 38 Energy Generation 14 Energy Capacity 250 Matter Stores 259 Matter Capacity 300 Sight Range 18 Terrain Scan Density 10 Evasion (%) 63 Recoil Reduction 2 Item Schematics ----------------- Grenade Launcher | -9/Materials | Scanalyzed Tractor Beam | -9/Materials | Scanalyzed Robot Schematics ------------------ None Fabricated ------------ Nothing Alien Tech Used ----------------- None Achievements -------------- Let's See Who's Tougher Use The Force Challenges ------------ None Game ------ Seed AntimatterBiomechanicalCloak Manual? 0 Play Time 00:25:12 Cumulative 1.6 hours Start 2022.05.10 @ 11:01:35 End 2022.05.10 @ 11:27:14 Sessions 1 Manual Loads 0 Difficulty Rogue Special Mode None Game No. 3 Rogue 3 Adventurer 0 Explorer 0 Win Type - Total 0 Types 0/0/0/0/0/0/0/0/0 Lore% 0 Gallery% 3 Achievement% 3 Wizard Run 0 Options --------- ASCII 0 Keyboard 0 Movement Mouse Keybinds 0 Fullscreen 2 Font 36/X11 Map View 76x50 Tactical HUD 1 Map Filters NONE Filters NONE Steam 1 RUN: fc2d8a14-ff19-47fb-bff4-184f03a67c40